Workbook

Sheet Январь
A1: Лицевой счёт | B1: Тип собственности | C1: Собственник | D1: № Кв. | E1: Показания ИПУ кВт/ч
E2: Декабрь | F2: =MID(CELL("имяфайла",A1),FIND("]",CELL("имяфайла",A1))+1,9) -> Январь | G2: Потребление за месяц кВт/ч
B3: Приватизированная | C3: Фамилия Имя Отчество | D3: 1 | E3: 2666 | F3: 2667 | G3: =_xlfn.IFS(OR(E3="",F3=""),"",F3<E3,F3,1,F3-E3) -> 1
B4: Приватизированная | C4: Фамилия Имя Отчество | D4: 2 | E4: 8922 | F4: 9009 | G4: =_xlfn.IFS(OR(E4="",F4=""),"",F4<E4,F4,1,F4-E4) -> 87
B5: Приватизированная | C5: Фамилия Имя Отчество | D5: 3 | E5: 1789 | F5: 1789 | G5: =_xlfn.IFS(OR(E5="",F5=""),"",F5<E5,F5,1,F5-E5) -> 0
B6: Приватизированная | C6: Фамилия Имя Отчество | D6: 4 | E6: 14146 | F6: 14308 | G6: =_xlfn.IFS(OR(E6="",F6=""),"",F6<E6,F6,1,F6-E6) -> 162
B7: Приватизированная | C7: Фамилия Имя Отчество | D7: 5 | E7: 5842 | F7: 5937 | G7: =_xlfn.IFS(OR(E7="",F7=""),"",F7<E7,F7,1,F7-E7) -> 95
B8: Приватизированная | C8: Фамилия Имя Отчество | D8: 6 | E8: 7740 | F8: 7837 | G8: =_xlfn.IFS(OR(E8="",F8=""),"",F8<E8,F8,1,F8-E8) -> 97
B9: Приватизированная | C9: Фамилия Имя Отчество | D9: 7 | E9: 5706 | F9: 5722 | G9: =_xlfn.IFS(OR(E9="",F9=""),"",F9<E9,F9,1,F9-E9) -> 16
B10: Приватизированная | C10: Фамилия Имя Отчество | D10: 8 | E10: 7772 | F10: 7827 | G10: =_xlfn.IFS(OR(E10="",F10=""),"",F10<E10,F10,1,F10-E10) -> 55
B11: Муниципальная | C11: Фамилия Имя Отчество | D11: 9 | E11: 12917 | F11: 12999 | G11: =_xlfn.IFS(OR(E11="",F11=""),"",F11<E11,F11,1,F11-E11) -> 82
B12: Приватизированная | C12: Фамилия Имя Отчество | D12: 10 | E12: 15202 | F12: 15559 | G12: =_xlfn.IFS(OR(E12="",F12=""),"",F12<E12,F12,1,F12-E12) -> 357
B13: Приватизированная | C13: Фамилия Имя Отчество | D13: 11 | E13: 2523 | F13: 2523 | G13: =_xlfn.IFS(OR(E13="",F13=""),"",F13<E13,F13,1,F13-E13) -> 0
B14: Приватизированная | C14: Фамилия Имя Отчество | D14: 12 | E14: 28023 | F14: 28283 | G14: =_xlfn.IFS(OR(E14="",F14=""),"",F14<E14,F14,1,F14-E14) -> 260
B15: Приватизированная | C15: Фамилия Имя Отчество | D15: 13 | E15: 942 | F15: 1010 | G15: =_xlfn.IFS(OR(E15="",F15=""),"",F15<E15,F15,1,F15-E15) -> 68
B16: Приватизированная | C16: Фамилия Имя Отчество | D16: 14 | E16: 5726 | F16: 5755 | G16: =_xlfn.IFS(OR(E16="",F16=""),"",F16<E16,F16,1,F16-E16) -> 29
B17: Приватизированная | C17: Фамилия Имя Отчество | D17: 15 | E17: 176 | F17: 186 | G17: =_xlfn.IFS(OR(E17="",F17=""),"",F17<E17,F17,1,F17-E17) -> 10
B18: Приватизированная | C18: Фамилия Имя Отчество | D18: 16 | E18: 16839 | F18: 16914 | G18: =_xlfn.IFS(OR(E18="",F18=""),"",F18<E18,F18,1,F18-E18) -> 75
B19: Приватизированная | C19: Фамилия Имя Отчество | D19: 17 | E19: 8503 | F19: 8630 | G19: =_xlfn.IFS(OR(E19="",F19=""),"",F19<E19,F19,1,F19-E19) -> 127
B20: Приватизированная | C20: Фамилия Имя Отчество | D20: 18 | E20: 18886 | F20: 18989 | G20: =_xlfn.IFS(OR(E20="",F20=""),"",F20<E20,F20,1,F20-E20) -> 103
B21: Приватизированная | C21: Фамилия Имя Отчество | D21: 19 | E21: 10766 | F21: 10766 | G21: =_xlfn.IFS(OR(E21="",F21=""),"",F21<E21,F21,1,F21-E21) -> 0
B22: Приватизированная | C22: Фамилия Имя Отчество | D22: 20 | E22: 13250 | F22: 13877 | G22: =_xlfn.IFS(OR(E22="",F22=""),"",F22<E22,F22,1,F22-E22) -> 627
B23: Муниципальная | C23: Фамилия Имя Отчество | D23: 21 | E23: 5440 | F23: 5622 | G23: =_xlfn.IFS(OR(E23="",F23=""),"",F23<E23,F23,1,F23-E23) -> 182
B24: Приватизированная | C24: Фамилия Имя Отчество | D24: 22 | E24: 2165 | F24: 2172 | G24: =_xlfn.IFS(OR(E24="",F24=""),"",F24<E24,F24,1,F24-E24) -> 7
B25: Приватизированная | C25: Фамилия Имя Отчество | D25: 23 | E25: 978 | F25: 1038 | G25: =_xlfn.IFS(OR(E25="",F25=""),"",F25<E25,F25,1,F25-E25) -> 60
B26: Приватизированная | C26: Фамилия Имя Отчество | D26: 24 | E26: 6637 | F26: 6688 | G26: =_xlfn.IFS(OR(E26="",F26=""),"",F26<E26,F26,1,F26-E26) -> 51
B27: Приватизированная | C27: Фамилия Имя Отчество | D27: 25 | E27: 8077 | F27: 8160 | G27: =_xlfn.IFS(OR(E27="",F27=""),"",F27<E27,F27,1,F27-E27) -> 83
B28: Приватизированная | C28: Фамилия Имя Отчество | D28: 26 | E28: 6945 | F28: 6945 | G28: =_xlfn.IFS(OR(E28="",F28=""),"",F28<E28,F28,1,F28-E28) -> 0
B29: Приватизированная | C29: Фамилия Имя Отчество | D29: 27 | E29: 5152 | F29: 5186 | G29: =_xlfn.IFS(OR(E29="",F29=""),"",F29<E29,F29,1,F29-E29) -> 34
B30: Приватизированная | C30: Фамилия Имя Отчество | D30: 28 | E30: 4522 | F30: 4559 | G30: =_xlfn.IFS(OR(E30="",F30=""),"",F30<E30,F30,1,F30-E30) -> 37
B31: Приватизированная | C31: Фамилия Имя Отчество | D31: 29 | E31: 10499 | F31: 10499 | G31: =_xlfn.IFS(OR(E31="",F31=""),"",F31<E31,F31,1,F31-E31) -> 0
B32: Приватизированная | C32: Фамилия Имя Отчество | D32: 30 | E32: 5222 | F32: 5479 | G32: =_xlfn.IFS(OR(E32="",F32=""),"",F32<E32,F32,1,F32-E32) -> 257
B33: Приватизированная | C33: Фамилия Имя Отчество | D33: 31 | E33: 11787 | F33: 11858 | G33: =_xlfn.IFS(OR(E33="",F33=""),"",F33<E33,F33,1,F33-E33) -> 71
B34: Приватизированная | C34: Фамилия Имя Отчество | D34: 32 | E34: 12391 | F34: 12449 | G34: =_xlfn.IFS(OR(E34="",F34=""),"",F34<E34,F34,1,F34-E34) -> 58
B35: Приватизированная | C35: Фамилия Имя Отчество | D35: 33 | E35: 12841 | F35: 12966 | G35: =_xlfn.IFS(OR(E35="",F35=""),"",F35<E35,F35,1,F35-E35) -> 125
B36: Приватизированная | C36: Фамилия Имя Отчество | D36: 34 | E36: 1648 | F36: 1680 | G36: =_xlfn.IFS(OR(E36="",F36=""),"",F36<E36,F36,1,F36-E36) -> 32
B37: Приватизированная | C37: Фамилия Имя Отчество | D37: 35 | E37: 7537 | F37: 7571 | G37: =_xlfn.IFS(OR(E37="",F37=""),"",F37<E37,F37,1,F37-E37) -> 34
B38: Приватизированная | C38: Фамилия Имя Отчество | D38: 36 | E38: 14014 | F38: 14117 | G38: =_xlfn.IFS(OR(E38="",F38=""),"",F38<E38,F38,1,F38-E38) -> 103
B39: Приватизированная | C39: Фамилия Имя Отчество | D39: 37 | E39: 10889 | F39: 10947 | G39: =_xlfn.IFS(OR(E39="",F39=""),"",F39<E39,F39,1,F39-E39) -> 58
B40: Приватизированная | C40: Фамилия Имя Отчество | D40: 38 | E40: 13716 | F40: 13847 | G40: =_xlfn.IFS(OR(E40="",F40=""),"",F40<E40,F40,1,F40-E40) -> 131
B41: Приватизированная | C41: Фамилия Имя Отчество | D41: 39 | E41: 6109 | F41: 6166 | G41: =_xlfn.IFS(OR(E41="",F41=""),"",F41<E41,F41,1,F41-E41) -> 57
B42: Приватизированная | C42: Фамилия Имя Отчество | D42: 40 | E42: 7149 | F42: 7211 | G42: =_xlfn.IFS(OR(E42="",F42=""),"",F42<E42,F42,1,F42-E42) -> 62
B43: Приватизированная | C43: Фамилия Имя Отчество | D43: 41 | E43: 8739 | F43: 8812 | G43: =_xlfn.IFS(OR(E43="",F43=""),"",F43<E43,F43,1,F43-E43) -> 73
B44: Приватизированная | C44: Фамилия Имя Отчество | D44: 42 | E44: 4653 | F44: 4653 | G44: =_xlfn.IFS(OR(E44="",F44=""),"",F44<E44,F44,1,F44-E44) -> 0
B45: Приватизированная | C45: Фамилия Имя Отчество | D45: 43 | E45: 2259 | F45: 2259 | G45: =_xlfn.IFS(OR(E45="",F45=""),"",F45<E45,F45,1,F45-E45) -> 0
B46: Приватизированная | C46: Фамилия Имя Отчество | D46: 44 | E46: 296 | F46: 328 | G46: =_xlfn.IFS(OR(E46="",F46=""),"",F46<E46,F46,1,F46-E46) -> 32
B47: Приватизированная | C47: Фамилия Имя Отчество | D47: 45 | E47: 8847 | F47: 8925 | G47: =_xlfn.IFS(OR(E47="",F47=""),"",F47<E47,F47,1,F47-E47) -> 78
B48: Приватизированная | C48: Фамилия Имя Отчество | D48: 46 | E48: 15518 | F48: 15833 | G48: =_xlfn.IFS(OR(E48="",F48=""),"",F48<E48,F48,1,F48-E48) -> 315
B49: Приватизированная | C49: Фамилия Имя Отчество | D49: 47 | E49: 9436 | F49: 9436 | G49: =_xlfn.IFS(OR(E49="",F49=""),"",F49<E49,F49,1,F49-E49) -> 0
B50: Приватизированная | C50: Фамилия Имя Отчество | D50: 48 | E50: 7442 | F50: 7523 | G50: =_xlfn.IFS(OR(E50="",F50=""),"",F50<E50,F50,1,F50-E50) -> 81
B51: Приватизированная | C51: Фамилия Имя Отчество | D51: 49 | E51: 14803 | F51: 14984 | G51: =_xlfn.IFS(OR(E51="",F51=""),"",F51<E51,F51,1,F51-E51) -> 181
B52: Приватизированная | C52: Фамилия Имя Отчество | D52: 50 | E52: 11743 | F52: 12117 | G52: =_xlfn.IFS(OR(E52="",F52=""),"",F52<E52,F52,1,F52-E52) -> 374
B53: Приватизированная | C53: Фамилия Имя Отчество | D53: 51 | E53: 20574 | F53: 20805 | G53: =_xlfn.IFS(OR(E53="",F53=""),"",F53<E53,F53,1,F53-E53) -> 231
B54: Приватизированная | C54: Фамилия Имя Отчество | D54: 52 | E54: 8293 | F54: 8399 | G54: =_xlfn.IFS(OR(E54="",F54=""),"",F54<E54,F54,1,F54-E54) -> 106
B55: Приватизированная | C55: Фамилия Имя Отчество | D55: 53 | E55: 7090 | F55: 7140 | G55: =_xlfn.IFS(OR(E55="",F55=""),"",F55<E55,F55,1,F55-E55) -> 50
B56: Муниципальная | C56: Фамилия Имя Отчество | D56: 54 | E56: 2564 | F56: 2654 | G56: =_xlfn.IFS(OR(E56="",F56=""),"",F56<E56,F56,1,F56-E56) -> 90
B57: Приватизированная | C57: Фамилия Имя Отчество | D57: 55 | E57: 1772 | F57: 1912 | G57: =_xlfn.IFS(OR(E57="",F57=""),"",F57<E57,F57,1,F57-E57) -> 140
B58: Приватизированная | C58: Фамилия Имя Отчество | D58: 56 | E58: 8069 | F58: 8154 | G58: =_xlfn.IFS(OR(E58="",F58=""),"",F58<E58,F58,1,F58-E58) -> 85
B59: Приватизированная | C59: Фамилия Имя Отчество | D59: 57 | E59: 18206 | F59: 18388 | G59: =_xlfn.IFS(OR(E59="",F59=""),"",F59<E59,F59,1,F59-E59) -> 182
B60: Приватизированная | C60: Фамилия Имя Отчество | D60: 58 | E60: 77 | F60: 125 | G60: =_xlfn.IFS(OR(E60="",F60=""),"",F60<E60,F60,1,F60-E60) -> 48
B61: Приватизированная | C61: Фамилия Имя Отчество | D61: 59 | E61: 18347 | F61: 18502 | G61: =_xlfn.IFS(OR(E61="",F61=""),"",F61<E61,F61,1,F61-E61) -> 155
B62: Приватизированная | C62: Фамилия Имя Отчество | D62: 60 | E62: 6735 | F62: 6789 | G62: =_xlfn.IFS(OR(E62="",F62=""),"",F62<E62,F62,1,F62-E62) -> 54
B63: Приватизированная | C63: Фамилия Имя Отчество | D63: 61 | E63: 15745 | F63: 15890 | G63: =_xlfn.IFS(OR(E63="",F63=""),"",F63<E63,F63,1,F63-E63) -> 145
B64: Приватизированная | C64: Фамилия Имя Отчество | D64: 62 | E64: 9157 | F64: 9262 | G64: =_xlfn.IFS(OR(E64="",F64=""),"",F64<E64,F64,1,F64-E64) -> 105
B65: Приватизированная | C65: Фамилия Имя Отчество | D65: 63 | E65: 1055 | F65: 1134 | G65: =_xlfn.IFS(OR(E65="",F65=""),"",F65<E65,F65,1,F65-E65) -> 79
B66: Приватизированная | C66: Фамилия Имя Отчество | D66: 64 | E66: 3543 | F66: 3599 | G66: =_xlfn.IFS(OR(E66="",F66=""),"",F66<E66,F66,1,F66-E66) -> 56
B67: Приватизированная | C67: Фамилия Имя Отчество | D67: 65 | E67: 11490 | F67: 11609 | G67: =_xlfn.IFS(OR(E67="",F67=""),"",F67<E67,F67,1,F67-E67) -> 119
B68: Приватизированная | C68: Фамилия Имя Отчество | D68: 66 | E68: 10585 | F68: 10646 | G68: =_xlfn.IFS(OR(E68="",F68=""),"",F68<E68,F68,1,F68-E68) -> 61
B69: Приватизированная | C69: Фамилия Имя Отчество | D69: 67 | E69: 9034 | F69: 9080 | G69: =_xlfn.IFS(OR(E69="",F69=""),"",F69<E69,F69,1,F69-E69) -> 46
B70: Приватизированная | C70: Фамилия Имя Отчество | D70: 68 | E70: 4580 | F70: 4670 | G70: =_xlfn.IFS(OR(E70="",F70=""),"",F70<E70,F70,1,F70-E70) -> 90
B71: Приватизированная | C71: Фамилия Имя Отчество | D71: 69 | E71: 12431 | F71: 12742 | G71: =_xlfn.IFS(OR(E71="",F71=""),"",F71<E71,F71,1,F71-E71) -> 311
B72: Приватизированная | C72: Фамилия Имя Отчество | D72: 70 | E72: 9376 | F72: 9401 | G72: =_xlfn.IFS(OR(E72="",F72=""),"",F72<E72,F72,1,F72-E72) -> 25
F73: Итого за месяц по всему дому: | G73: =SUM(G3:G72) -> 7005
F74: Итого квартир с нулевым потреблением электричества: | G74: =COUNTIF(G3:G72,0) -> 8

Sheet Февраль
A1: Лицевой счёт | B1: Тип собственности | C1: Собственник | D1: № Кв. | E1: Показания ИПУ кВт/ч
E2: =INDEX(Листы,MATCH(F2,Листы,)-1) -> Январь | F2: =MID(CELL("имяфайла",A1),FIND("]",CELL("имяфайла",A1))+1,9) -> Февраль | G2: Потребление за месяц кВт/ч
B3: Приватизированная | C3: Фамилия Имя Отчество | D3: 1 | E3: =INDIRECT(E$2&"!F"&ROW()) -> 2667 | F3: 2891 | G3: =_xlfn.IFS(OR(E3="",F3=""),"",F3<E3,F3,1,F3-E3) -> 224
B4: Приватизированная | C4: Фамилия Имя Отчество | D4: 2 | E4: =INDIRECT(E$2&"!F"&ROW()) -> 9009 | G4: =_xlfn.IFS(OR(E4="",F4=""),"",F4<E4,F4,1,F4-E4) -> 
B5: Приватизированная | C5: Фамилия Имя Отчество | D5: 3 | E5: =INDIRECT(E$2&"!F"&ROW()) -> 1789 | G5: =_xlfn.IFS(OR(E5="",F5=""),"",F5<E5,F5,1,F5-E5) -> 
B6: Приватизированная | C6: Фамилия Имя Отчество | D6: 4 | E6: 14308 | G6: =_xlfn.IFS(OR(E6="",F6=""),"",F6<E6,F6,1,F6-E6) -> 
B7: Приватизированная | C7: Фамилия Имя Отчество | D7: 5 | E7: 5937 | G7: =_xlfn.IFS(OR(E7="",F7=""),"",F7<E7,F7,1,F7-E7) -> 
B8: Приватизированная | C8: Фамилия Имя Отчество | D8: 6 | E8: 7837 | G8: =_xlfn.IFS(OR(E8="",F8=""),"",F8<E8,F8,1,F8-E8) -> 
B9: Приватизированная | C9: Фамилия Имя Отчество | D9: 7 | E9: 5722 | G9: =_xlfn.IFS(OR(E9="",F9=""),"",F9<E9,F9,1,F9-E9) -> 
B10: Приватизированная | C10: Фамилия Имя Отчество | D10: 8 | E10: 7827 | G10: =_xlfn.IFS(OR(E10="",F10=""),"",F10<E10,F10,1,F10-E10) -> 
B11: Муниципальная | C11: Фамилия Имя Отчество | D11: 9 | E11: 12999 | G11: =_xlfn.IFS(OR(E11="",F11=""),"",F11<E11,F11,1,F11-E11) -> 
B12: Приватизированная | C12: Фамилия Имя Отчество | D12: 10 | E12: 15559 | G12: =_xlfn.IFS(OR(E12="",F12=""),"",F12<E12,F12,1,F12-E12) -> 
B13: Приватизированная | C13: Фамилия Имя Отчество | D13: 11 | E13: 2523 | G13: =_xlfn.IFS(OR(E13="",F13=""),"",F13<E13,F13,1,F13-E13) -> 
B14: Приватизированная | C14: Фамилия Имя Отчество | D14: 12 | E14: 28283 | G14: =_xlfn.IFS(OR(E14="",F14=""),"",F14<E14,F14,1,F14-E14) -> 
B15: Приватизированная | C15: Фамилия Имя Отчество | D15: 13 | E15: 1010 | G15: =_xlfn.IFS(OR(E15="",F15=""),"",F15<E15,F15,1,F15-E15) -> 
B16: Приватизированная | C16: Фамилия Имя Отчество | D16: 14 | E16: 5755 | G16: =_xlfn.IFS(OR(E16="",F16=""),"",F16<E16,F16,1,F16-E16) -> 
B17: Приватизированная | C17: Фамилия Имя Отчество | D17: 15 | E17: 186 | G17: =_xlfn.IFS(OR(E17="",F17=""),"",F17<E17,F17,1,F17-E17) -> 
B18: Приватизированная | C18: Фамилия Имя Отчество | D18: 16 | E18: 16914 | G18: =_xlfn.IFS(OR(E18="",F18=""),"",F18<E18,F18,1,F18-E18) -> 
B19: Приватизированная | C19: Фамилия Имя Отчество | D19: 17 | E19: 8630 | G19: =_xlfn.IFS(OR(E19="",F19=""),"",F19<E19,F19,1,F19-E19) -> 
B20: Приватизированная | C20: Фамилия Имя Отчество | D20: 18 | E20: 18989 | G20: =_xlfn.IFS(OR(E20="",F20=""),"",F20<E20,F20,1,F20-E20) -> 
B21: Приватизированная | C21: Фамилия Имя Отчество | D21: 19 | E21: 10766 | G21: =_xlfn.IFS(OR(E21="",F21=""),"",F21<E21,F21,1,F21-E21) -> 
B22: Приватизированная | C22: Фамилия Имя Отчество | D22: 20 | E22: 13877 | G22: =_xlfn.IFS(OR(E22="",F22=""),"",F22<E22,F22,1,F22-E22) -> 
B23: Муниципальная | C23: Фамилия Имя Отчество | D23: 21 | E23: 5622 | G23: =_xlfn.IFS(OR(E23="",F23=""),"",F23<E23,F23,1,F23-E23) -> 
B24: Приватизированная | C24: Фамилия Имя Отчество | D24: 22 | E24: 2172 | G24: =_xlfn.IFS(OR(E24="",F24=""),"",F24<E24,F24,1,F24-E24) -> 
B25: Приватизированная | C25: Фамилия Имя Отчество | D25: 23 | E25: 1038 | G25: =_xlfn.IFS(OR(E25="",F25=""),"",F25<E25,F25,1,F25-E25) -> 
B26: Приватизированная | C26: Фамилия Имя Отчество | D26: 24 | E26: 6688 | G26: =_xlfn.IFS(OR(E26="",F26=""),"",F26<E26,F26,1,F26-E26) -> 
B27: Приватизированная | C27: Фамилия Имя Отчество | D27: 25 | E27: 8160 | G27: =_xlfn.IFS(OR(E27="",F27=""),"",F27<E27,F27,1,F27-E27) -> 
B28: Приватизированная | C28: Фамилия Имя Отчество | D28: 26 | E28: 6945 | G28: =_xlfn.IFS(OR(E28="",F28=""),"",F28<E28,F28,1,F28-E28) -> 
B29: Приватизированная | C29: Фамилия Имя Отчество | D29: 27 | E29: 5186 | G29: =_xlfn.IFS(OR(E29="",F29=""),"",F29<E29,F29,1,F29-E29) -> 
B30: Приватизированная | C30: Фамилия Имя Отчество | D30: 28 | E30: 4559 | G30: =_xlfn.IFS(OR(E30="",F30=""),"",F30<E30,F30,1,F30-E30) -> 
B31: Приватизированная | C31: Фамилия Имя Отчество | D31: 29 | E31: 10499 | G31: =_xlfn.IFS(OR(E31="",F31=""),"",F31<E31,F31,1,F31-E31) -> 
B32: Приватизированная | C32: Фамилия Имя Отчество | D32: 30 | E32: 5479 | G32: =_xlfn.IFS(OR(E32="",F32=""),"",F32<E32,F32,1,F32-E32) -> 
B33: Приватизированная | C33: Фамилия Имя Отчество | D33: 31 | E33: 11858 | G33: =_xlfn.IFS(OR(E33="",F33=""),"",F33<E33,F33,1,F33-E33) -> 
B34: Приватизированная | C34: Фамилия Имя Отчество | D34: 32 | E34: 12449 | G34: =_xlfn.IFS(OR(E34="",F34=""),"",F34<E34,F34,1,F34-E34) -> 
B35: Приватизированная | C35: Фамилия Имя Отчество | D35: 33 | E35: 12966 | G35: =_xlfn.IFS(OR(E35="",F35=""),"",F35<E35,F35,1,F35-E35) -> 
B36: Приватизированная | C36: Фамилия Имя Отчество | D36: 34 | E36: 1680 | G36: =_xlfn.IFS(OR(E36="",F36=""),"",F36<E36,F36,1,F36-E36) -> 
B37: Приватизированная | C37: Фамилия Имя Отчество | D37: 35 | E37: 7571 | G37: =_xlfn.IFS(OR(E37="",F37=""),"",F37<E37,F37,1,F37-E37) -> 
B38: Приватизированная | C38: Фамилия Имя Отчество | D38: 36 | E38: 14117 | G38: =_xlfn.IFS(OR(E38="",F38=""),"",F38<E38,F38,1,F38-E38) -> 
B39: Приватизированная | C39: Фамилия Имя Отчество | D39: 37 | E39: 10947 | G39: =_xlfn.IFS(OR(E39="",F39=""),"",F39<E39,F39,1,F39-E39) -> 
B40: Приватизированная | C40: Фамилия Имя Отчество | D40: 38 | E40: 13847 | G40: =_xlfn.IFS(OR(E40="",F40=""),"",F40<E40,F40,1,F40-E40) -> 
B41: Приватизированная | C41: Фамилия Имя Отчество | D41: 39 | E41: 6166 | G41: =_xlfn.IFS(OR(E41="",F41=""),"",F41<E41,F41,1,F41-E41) -> 
B42: Приватизированная | C42: Фамилия Имя Отчество | D42: 40 | E42: 7211 | G42: =_xlfn.IFS(OR(E42="",F42=""),"",F42<E42,F42,1,F42-E42) -> 
B43: Приватизированная | C43: Фамилия Имя Отчество | D43: 41 | E43: 8812 | G43: =_xlfn.IFS(OR(E43="",F43=""),"",F43<E43,F43,1,F43-E43) -> 
B44: Приватизированная | C44: Фамилия Имя Отчество | D44: 42 | E44: 4653 | G44: =_xlfn.IFS(OR(E44="",F44=""),"",F44<E44,F44,1,F44-E44) -> 
B45: Приватизированная | C45: Фамилия Имя Отчество | D45: 43 | E45: 2259 | G45: =_xlfn.IFS(OR(E45="",F45=""),"",F45<E45,F45,1,F45-E45) -> 
B46: Приватизированная | C46: Фамилия Имя Отчество | D46: 44 | E46: 328 | G46: =_xlfn.IFS(OR(E46="",F46=""),"",F46<E46,F46,1,F46-E46) -> 
B47: Приватизированная | C47: Фамилия Имя Отчество | D47: 45 | E47: 8925 | G47: =_xlfn.IFS(OR(E47="",F47=""),"",F47<E47,F47,1,F47-E47) -> 
B48: Приватизированная | C48: Фамилия Имя Отчество | D48: 46 | E48: 15833 | G48: =_xlfn.IFS(OR(E48="",F48=""),"",F48<E48,F48,1,F48-E48) -> 
B49: Приватизированная | C49: Фамилия Имя Отчество | D49: 47 | E49: 9436 | G49: =_xlfn.IFS(OR(E49="",F49=""),"",F49<E49,F49,1,F49-E49) -> 
B50: Приватизированная | C50: Фамилия Имя Отчество | D50: 48 | E50: 7523 | G50: =_xlfn.IFS(OR(E50="",F50=""),"",F50<E50,F50,1,F50-E50) -> 
B51: Приватизированная | C51: Фамилия Имя Отчество | D51: 49 | E51: 14984 | G51: =_xlfn.IFS(OR(E51="",F51=""),"",F51<E51,F51,1,F51-E51) -> 
B52: Приватизированная | C52: Фамилия Имя Отчество | D52: 50 | E52: 12117 | G52: =_xlfn.IFS(OR(E52="",F52=""),"",F52<E52,F52,1,F52-E52) -> 
B53: Приватизированная | C53: Фамилия Имя Отчество | D53: 51 | E53: 20805 | G53: =_xlfn.IFS(OR(E53="",F53=""),"",F53<E53,F53,1,F53-E53) -> 
B54: Приватизированная | C54: Фамилия Имя Отчество | D54: 52 | E54: 8399 | G54: =_xlfn.IFS(OR(E54="",F54=""),"",F54<E54,F54,1,F54-E54) -> 
B55: Приватизированная | C55: Фамилия Имя Отчество | D55: 53 | E55: 7140 | G55: =_xlfn.IFS(OR(E55="",F55=""),"",F55<E55,F55,1,F55-E55) -> 
B56: Муниципальная | C56: Фамилия Имя Отчество | D56: 54 | E56: 2654 | G56: =_xlfn.IFS(OR(E56="",F56=""),"",F56<E56,F56,1,F56-E56) -> 
B57: Приватизированная | C57: Фамилия Имя Отчество | D57: 55 | E57: 1912 | G57: =_xlfn.IFS(OR(E57="",F57=""),"",F57<E57,F57,1,F57-E57) -> 
B58: Приватизированная | C58: Фамилия Имя Отчество | D58: 56 | E58: 8154 | G58: =_xlfn.IFS(OR(E58="",F58=""),"",F58<E58,F58,1,F58-E58) -> 
B59: Приватизированная | C59: Фамилия Имя Отчество | D59: 57 | E59: 18388 | G59: =_xlfn.IFS(OR(E59="",F59=""),"",F59<E59,F59,1,F59-E59) -> 
B60: Приватизированная | C60: Фамилия Имя Отчество | D60: 58 | E60: 125 | G60: =_xlfn.IFS(OR(E60="",F60=""),"",F60<E60,F60,1,F60-E60) -> 
B61: Приватизированная | C61: Фамилия Имя Отчество | D61: 59 | E61: 18502 | G61: =_xlfn.IFS(OR(E61="",F61=""),"",F61<E61,F61,1,F61-E61) -> 
B62: Приватизированная | C62: Фамилия Имя Отчество | D62: 60 | E62: 6789 | G62: =_xlfn.IFS(OR(E62="",F62=""),"",F62<E62,F62,1,F62-E62) -> 
B63: Приватизированная | C63: Фамилия Имя Отчество | D63: 61 | E63: 15890 | G63: =_xlfn.IFS(OR(E63="",F63=""),"",F63<E63,F63,1,F63-E63) -> 
B64: Приватизированная | C64: Фамилия Имя Отчество | D64: 62 | E64: 9262 | G64: =_xlfn.IFS(OR(E64="",F64=""),"",F64<E64,F64,1,F64-E64) -> 
B65: Приватизированная | C65: Фамилия Имя Отчество | D65: 63 | E65: 1134 | G65: =_xlfn.IFS(OR(E65="",F65=""),"",F65<E65,F65,1,F65-E65) -> 
B66: Приватизированная | C66: Фамилия Имя Отчество | D66: 64 | E66: 3599 | G66: =_xlfn.IFS(OR(E66="",F66=""),"",F66<E66,F66,1,F66-E66) -> 
B67: Приватизированная | C67: Фамилия Имя Отчество | D67: 65 | E67: 11609 | G67: =_xlfn.IFS(OR(E67="",F67=""),"",F67<E67,F67,1,F67-E67) -> 
B68: Приватизированная | C68: Фамилия Имя Отчество | D68: 66 | E68: 10646 | G68: =_xlfn.IFS(OR(E68="",F68=""),"",F68<E68,F68,1,F68-E68) -> 
B69: Приватизированная | C69: Фамилия Имя Отчество | D69: 67 | E69: =INDIRECT(E$2&"!F"&ROW()) -> 9080 | G69: =_xlfn.IFS(OR(E69="",F69=""),"",F69<E69,F69,1,F69-E69) -> 
B70: Приватизированная | C70: Фамилия Имя Отчество | D70: 68 | E70: 4670 | G70: =_xlfn.IFS(OR(E70="",F70=""),"",F70<E70,F70,1,F70-E70) -> 
B71: Приватизированная | C71: Фамилия Имя Отчество | D71: 69 | E71: 12742 | G71: =_xlfn.IFS(OR(E71="",F71=""),"",F71<E71,F71,1,F71-E71) -> 
B72: Приватизированная | C72: Фамилия Имя Отчество | D72: 70 | E72: 9401 | G72: =_xlfn.IFS(OR(E72="",F72=""),"",F72<E72,F72,1,F72-E72) -> 
F73: Итого за месяц по всему дому: | G73: =SUM(G3:G72) -> 224
F74: Итого квартир с нулевым потреблением электричества: | G74: =COUNTIF(G3:G72,0) -> 0

Sheet Март
A1: Лицевой счёт | B1: Тип собственности | C1: Собственник | D1: № Кв. | E1: Показания ИПУ кВт/ч
E2: =INDEX(Листы,MATCH(F2,Листы,)-1) -> Февраль | F2: =MID(CELL("имяфайла",A1),FIND("]",CELL("имяфайла",A1))+1,9) -> Март | G2: Потребление за месяц кВт/ч
B3: Приватизированная | C3: Фамилия Имя Отчество | D3: 1 | E3: =INDIRECT(E$2&"!F"&ROW()) -> 2891 | G3: =_xlfn.IFS(OR(E3="",F3=""),"",F3<E3,F3,1,F3-E3) -> 
B4: Приватизированная | C4: Фамилия Имя Отчество | D4: 2 | E4: =INDIRECT(E$2&"!F"&ROW()) -> 0 | G4: =_xlfn.IFS(OR(E4="",F4=""),"",F4<E4,F4,1,F4-E4) -> 
B5: Приватизированная | C5: Фамилия Имя Отчество | D5: 3 | E5: =INDIRECT(E$2&"!F"&ROW()) -> 0 | G5: =_xlfn.IFS(OR(E5="",F5=""),"",F5<E5,F5,1,F5-E5) -> 
B6: Приватизированная | C6: Фамилия Имя Отчество | D6: 4 | E6: 0 | G6: =_xlfn.IFS(OR(E6="",F6=""),"",F6<E6,F6,1,F6-E6) -> 
B7: Приватизированная | C7: Фамилия Имя Отчество | D7: 5 | E7: 0 | G7: =_xlfn.IFS(OR(E7="",F7=""),"",F7<E7,F7,1,F7-E7) -> 
B8: Приватизированная | C8: Фамилия Имя Отчество | D8: 6 | E8: 0 | G8: =_xlfn.IFS(OR(E8="",F8=""),"",F8<E8,F8,1,F8-E8) -> 
B9: Приватизированная | C9: Фамилия Имя Отчество | D9: 7 | E9: 0 | G9: =_xlfn.IFS(OR(E9="",F9=""),"",F9<E9,F9,1,F9-E9) -> 
B10: Приватизированная | C10: Фамилия Имя Отчество | D10: 8 | E10: 0 | G10: =_xlfn.IFS(OR(E10="",F10=""),"",F10<E10,F10,1,F10-E10) -> 
B11: Муниципальная | C11: Фамилия Имя Отчество | D11: 9 | E11: 0 | G11: =_xlfn.IFS(OR(E11="",F11=""),"",F11<E11,F11,1,F11-E11) -> 
B12: Приватизированная | C12: Фамилия Имя Отчество | D12: 10 | E12: 0 | G12: =_xlfn.IFS(OR(E12="",F12=""),"",F12<E12,F12,1,F12-E12) -> 
B13: Приватизированная | C13: Фамилия Имя Отчество | D13: 11 | E13: 0 | G13: =_xlfn.IFS(OR(E13="",F13=""),"",F13<E13,F13,1,F13-E13) -> 
B14: Приватизированная | C14: Фамилия Имя Отчество | D14: 12 | E14: 0 | G14: =_xlfn.IFS(OR(E14="",F14=""),"",F14<E14,F14,1,F14-E14) -> 
B15: Приватизированная | C15: Фамилия Имя Отчество | D15: 13 | E15: 0 | G15: =_xlfn.IFS(OR(E15="",F15=""),"",F15<E15,F15,1,F15-E15) -> 
B16: Приватизированная | C16: Фамилия Имя Отчество | D16: 14 | E16: 0 | G16: =_xlfn.IFS(OR(E16="",F16=""),"",F16<E16,F16,1,F16-E16) -> 
B17: Приватизированная | C17: Фамилия Имя Отчество | D17: 15 | E17: 0 | G17: =_xlfn.IFS(OR(E17="",F17=""),"",F17<E17,F17,1,F17-E17) -> 
B18: Приватизированная | C18: Фамилия Имя Отчество | D18: 16 | E18: 0 | G18: =_xlfn.IFS(OR(E18="",F18=""),"",F18<E18,F18,1,F18-E18) -> 
B19: Приватизированная | C19: Фамилия Имя Отчество | D19: 17 | E19: 0 | G19: =_xlfn.IFS(OR(E19="",F19=""),"",F19<E19,F19,1,F19-E19) -> 
B20: Приватизированная | C20: Фамилия Имя Отчество | D20: 18 | E20: 0 | G20: =_xlfn.IFS(OR(E20="",F20=""),"",F20<E20,F20,1,F20-E20) -> 
B21: Приватизированная | C21: Фамилия Имя Отчество | D21: 19 | E21: 0 | G21: =_xlfn.IFS(OR(E21="",F21=""),"",F21<E21,F21,1,F21-E21) -> 
B22: Приватизированная | C22: Фамилия Имя Отчество | D22: 20 | E22: 0 | G22: =_xlfn.IFS(OR(E22="",F22=""),"",F22<E22,F22,1,F22-E22) -> 
B23: Муниципальная | C23: Фамилия Имя Отчество | D23: 21 | E23: 0 | G23: =_xlfn.IFS(OR(E23="",F23=""),"",F23<E23,F23,1,F23-E23) -> 
B24: Приватизированная | C24: Фамилия Имя Отчество | D24: 22 | E24: 0 | G24: =_xlfn.IFS(OR(E24="",F24=""),"",F24<E24,F24,1,F24-E24) -> 
B25: Приватизированная | C25: Фамилия Имя Отчество | D25: 23 | E25: 0 | G25: =_xlfn.IFS(OR(E25="",F25=""),"",F25<E25,F25,1,F25-E25) -> 
B26: Приватизированная | C26: Фамилия Имя Отчество | D26: 24 | E26: 0 | G26: =_xlfn.IFS(OR(E26="",F26=""),"",F26<E26,F26,1,F26-E26) -> 
B27: Приватизированная | C27: Фамилия Имя Отчество | D27: 25 | E27: 0 | G27: =_xlfn.IFS(OR(E27="",F27=""),"",F27<E27,F27,1,F27-E27) -> 
B28: Приватизированная | C28: Фамилия Имя Отчество | D28: 26 | E28: 0 | G28: =_xlfn.IFS(OR(E28="",F28=""),"",F28<E28,F28,1,F28-E28) -> 
B29: Приватизированная | C29: Фамилия Имя Отчество | D29: 27 | E29: 0 | G29: =_xlfn.IFS(OR(E29="",F29=""),"",F29<E29,F29,1,F29-E29) -> 
B30: Приватизированная | C30: Фамилия Имя Отчество | D30: 28 | E30: 0 | G30: =_xlfn.IFS(OR(E30="",F30=""),"",F30<E30,F30,1,F30-E30) -> 
B31: Приватизированная | C31: Фамилия Имя Отчество | D31: 29 | E31: 0 | G31: =_xlfn.IFS(OR(E31="",F31=""),"",F31<E31,F31,1,F31-E31) -> 
B32: Приватизированная | C32: Фамилия Имя Отчество | D32: 30 | E32: 0 | G32: =_xlfn.IFS(OR(E32="",F32=""),"",F32<E32,F32,1,F32-E32) -> 
B33: Приватизированная | C33: Фамилия Имя Отчество | D33: 31 | E33: 0 | G33: =_xlfn.IFS(OR(E33="",F33=""),"",F33<E33,F33,1,F33-E33) -> 
B34: Приватизированная | C34: Фамилия Имя Отчество | D34: 32 | E34: 0 | G34: =_xlfn.IFS(OR(E34="",F34=""),"",F34<E34,F34,1,F34-E34) -> 
B35: Приватизированная | C35: Фамилия Имя Отчество | D35: 33 | E35: 0 | G35: =_xlfn.IFS(OR(E35="",F35=""),"",F35<E35,F35,1,F35-E35) -> 
B36: Приватизированная | C36: Фамилия Имя Отчество | D36: 34 | E36: 0 | G36: =_xlfn.IFS(OR(E36="",F36=""),"",F36<E36,F36,1,F36-E36) -> 
B37: Приватизированная | C37: Фамилия Имя Отчество | D37: 35 | E37: 0 | G37: =_xlfn.IFS(OR(E37="",F37=""),"",F37<E37,F37,1,F37-E37) -> 
B38: Приватизированная | C38: Фамилия Имя Отчество | D38: 36 | E38: 0 | G38: =_xlfn.IFS(OR(E38="",F38=""),"",F38<E38,F38,1,F38-E38) -> 
B39: Приватизированная | C39: Фамилия Имя Отчество | D39: 37 | E39: 0 | G39: =_xlfn.IFS(OR(E39="",F39=""),"",F39<E39,F39,1,F39-E39) -> 
B40: Приватизированная | C40: Фамилия Имя Отчество | D40: 38 | E40: 0 | G40: =_xlfn.IFS(OR(E40="",F40=""),"",F40<E40,F40,1,F40-E40) -> 
B41: Приватизированная | C41: Фамилия Имя Отчество | D41: 39 | E41: 0 | G41: =_xlfn.IFS(OR(E41="",F41=""),"",F41<E41,F41,1,F41-E41) -> 
B42: Приватизированная | C42: Фамилия Имя Отчество | D42: 40 | E42: 0 | G42: =_xlfn.IFS(OR(E42="",F42=""),"",F42<E42,F42,1,F42-E42) -> 
B43: Приватизированная | C43: Фамилия Имя Отчество | D43: 41 | E43: 0 | G43: =_xlfn.IFS(OR(E43="",F43=""),"",F43<E43,F43,1,F43-E43) -> 
B44: Приватизированная | C44: Фамилия Имя Отчество | D44: 42 | E44: 0 | G44: =_xlfn.IFS(OR(E44="",F44=""),"",F44<E44,F44,1,F44-E44) -> 
B45: Приватизированная | C45: Фамилия Имя Отчество | D45: 43 | E45: 0 | G45: =_xlfn.IFS(OR(E45="",F45=""),"",F45<E45,F45,1,F45-E45) -> 
B46: Приватизированная | C46: Фамилия Имя Отчество | D46: 44 | E46: 0 | G46: =_xlfn.IFS(OR(E46="",F46=""),"",F46<E46,F46,1,F46-E46) -> 
B47: Приватизированная | C47: Фамилия Имя Отчество | D47: 45 | E47: 0 | G47: =_xlfn.IFS(OR(E47="",F47=""),"",F47<E47,F47,1,F47-E47) -> 
B48: Приватизированная | C48: Фамилия Имя Отчество | D48: 46 | E48: 0 | G48: =_xlfn.IFS(OR(E48="",F48=""),"",F48<E48,F48,1,F48-E48) -> 
B49: Приватизированная | C49: Фамилия Имя Отчество | D49: 47 | E49: 0 | G49: =_xlfn.IFS(OR(E49="",F49=""),"",F49<E49,F49,1,F49-E49) -> 
B50: Приватизированная | C50: Фамилия Имя Отчество | D50: 48 | E50: 0 | G50: =_xlfn.IFS(OR(E50="",F50=""),"",F50<E50,F50,1,F50-E50) -> 
B51: Приватизированная | C51: Фамилия Имя Отчество | D51: 49 | E51: 0 | G51: =_xlfn.IFS(OR(E51="",F51=""),"",F51<E51,F51,1,F51-E51) -> 
B52: Приватизированная | C52: Фамилия Имя Отчество | D52: 50 | E52: 0 | G52: =_xlfn.IFS(OR(E52="",F52=""),"",F52<E52,F52,1,F52-E52) -> 
B53: Приватизированная | C53: Фамилия Имя Отчество | D53: 51 | E53: 0 | G53: =_xlfn.IFS(OR(E53="",F53=""),"",F53<E53,F53,1,F53-E53) -> 
B54: Приватизированная | C54: Фамилия Имя Отчество | D54: 52 | E54: 0 | G54: =_xlfn.IFS(OR(E54="",F54=""),"",F54<E54,F54,1,F54-E54) -> 
B55: Приватизированная | C55: Фамилия Имя Отчество | D55: 53 | E55: 0 | G55: =_xlfn.IFS(OR(E55="",F55=""),"",F55<E55,F55,1,F55-E55) -> 
B56: Муниципальная | C56: Фамилия Имя Отчество | D56: 54 | E56: 0 | G56: =_xlfn.IFS(OR(E56="",F56=""),"",F56<E56,F56,1,F56-E56) -> 
B57: Приватизированная | C57: Фамилия Имя Отчество | D57: 55 | E57: 0 | G57: =_xlfn.IFS(OR(E57="",F57=""),"",F57<E57,F57,1,F57-E57) -> 
B58: Приватизированная | C58: Фамилия Имя Отчество | D58: 56 | E58: 0 | G58: =_xlfn.IFS(OR(E58="",F58=""),"",F58<E58,F58,1,F58-E58) -> 
B59: Приватизированная | C59: Фамилия Имя Отчество | D59: 57 | E59: 0 | G59: =_xlfn.IFS(OR(E59="",F59=""),"",F59<E59,F59,1,F59-E59) -> 
B60: Приватизированная | C60: Фамилия Имя Отчество | D60: 58 | E60: 0 | G60: =_xlfn.IFS(OR(E60="",F60=""),"",F60<E60,F60,1,F60-E60) -> 
B61: Приватизированная | C61: Фамилия Имя Отчество | D61: 59 | E61: 0 | G61: =_xlfn.IFS(OR(E61="",F61=""),"",F61<E61,F61,1,F61-E61) -> 
B62: Приватизированная | C62: Фамилия Имя Отчество | D62: 60 | E62: 0 | G62: =_xlfn.IFS(OR(E62="",F62=""),"",F62<E62,F62,1,F62-E62) -> 
B63: Приватизированная | C63: Фамилия Имя Отчество | D63: 61 | E63: 0 | G63: =_xlfn.IFS(OR(E63="",F63=""),"",F63<E63,F63,1,F63-E63) -> 
B64: Приватизированная | C64: Фамилия Имя Отчество | D64: 62 | E64: 0 | G64: =_xlfn.IFS(OR(E64="",F64=""),"",F64<E64,F64,1,F64-E64) -> 
B65: Приватизированная | C65: Фамилия Имя Отчество | D65: 63 | E65: 0 | G65: =_xlfn.IFS(OR(E65="",F65=""),"",F65<E65,F65,1,F65-E65) -> 
B66: Приватизированная | C66: Фамилия Имя Отчество | D66: 64 | E66: 0 | G66: =_xlfn.IFS(OR(E66="",F66=""),"",F66<E66,F66,1,F66-E66) -> 
B67: Приватизированная | C67: Фамилия Имя Отчество | D67: 65 | E67: 0 | G67: =_xlfn.IFS(OR(E67="",F67=""),"",F67<E67,F67,1,F67-E67) -> 
B68: Приватизированная | C68: Фамилия Имя Отчество | D68: 66 | E68: 0 | G68: =_xlfn.IFS(OR(E68="",F68=""),"",F68<E68,F68,1,F68-E68) -> 
B69: Приватизированная | C69: Фамилия Имя Отчество | D69: 67 | E69: =INDIRECT(E$2&"!F"&ROW()) -> 0 | G69: =_xlfn.IFS(OR(E69="",F69=""),"",F69<E69,F69,1,F69-E69) -> 
B70: Приватизированная | C70: Фамилия Имя Отчество | D70: 68 | E70: 0 | G70: =_xlfn.IFS(OR(E70="",F70=""),"",F70<E70,F70,1,F70-E70) -> 
B71: Приватизированная | C71: Фамилия Имя Отчество | D71: 69 | E71: 0 | G71: =_xlfn.IFS(OR(E71="",F71=""),"",F71<E71,F71,1,F71-E71) -> 
B72: Приватизированная | C72: Фамилия Имя Отчество | D72: 70 | E72: 0 | G72: =_xlfn.IFS(OR(E72="",F72=""),"",F72<E72,F72,1,F72-E72) -> 
F73: Итого за месяц по всему дому: | G73: =SUM(G3:G72) -> 0
F74: Итого квартир с нулевым потреблением электричества: | G74: =COUNTIF(G3:G72,0) -> 0
